{"text_format":"1","workbook":"xlsx","n_sheets":6,"sheets":["説明","基本情報登録","入力","健保正","健保副","年金"],"not_rendered":{"charts":0,"images":0,"macros":1,"external_links":0,"defined_names":0,"comments":0,"pivot_tables":0},"unopened":[],"bounds":{"document_bytes":16777216,"sheet_cells":100000,"rows_first":2000,"rows_last":500,"rows_between":2000,"halvings":0,"cell_chars":16384,"cell_head_chars":4096},"cells_cut":0,"cells_raw":0,"read":"whole","date_system":"1900"}

{"sheet":"説明","index":0,"n_rows":7,"n_cols":2,"rows_kept":7,"cut":false,"hidden":false,"merged":[]}
[]
["１．","シート「基本情報登録」で事業所の基本情報を入力してください。"]
["２．","シート「入力」で、入力欄を備考を参考に入力してください。"]
["３．","入力欄は漢字入力等は自動でオン・オフします。"]
["４．","数値のみを入力する欄は日本語入力がオフになっています。"]
["５．","入力が終わったらシート「入力」の［印刷］ボタンを押してください。"]
[null,"シート「健保正」・「健保副」・「年金」の3枚が印刷されます。"]

{"sheet":"基本情報登録","index":1,"n_rows":11,"n_cols":5,"rows_kept":11,"cut":false,"hidden":false,"merged":[[6,4,6,11],[7,4,7,11],[8,4,8,11],[9,4,9,11],[10,4,10,11],[5,4,5,11],[1,4,1,11],[2,1,3,1],[2,4,2,11],[3,4,3,11],[4,4,4,11]]}
[]
[null,"提出年月日",{"$f":"TODAY()","v":"2022-08-23"},null,"TODAY関数が入力されています。提出日を変更する場合のみ入力してください。"]
[null,"年金整理記号","南",null,"年金記号の「南」、「北」、「豊中」を入力してください。"]
[null,null,"ＷＥＤ",null,"年金記号の「ＷＥＤ」、「ＳＦＨ」を入力してください"]
[null,"年金納入告知書番号",null,null,"「00687」のように必ず５ケタの数字を入力してください。"]
[null,"健康保険記号","532",null,"健康保険の記号を入力してください。"]
[null,"郵便番号","542-0066",null,"「542-0066」と－（ハイフン）を入力してください。"]
[null,"事業所所在地","大阪府大阪市中央区瓦屋町2-3-1",null,"住所が長い場合は、Alt+Enterで折り返してください。"]
[null,"事業所名称","大阪自動車整備健康保険組合",null,"事業所名を入力してください。"]
[null,"事業主氏名","理事長　健保　太郎",null,"代表者名を入力してください。"]
[null,"電話番号","06-6762-6371",null,"「06-6762-6371」と－（ハイフン)を入力してください。"]

{"sheet":"入力","index":2,"n_rows":8,"n_cols":5,"rows_kept":8,"cut":false,"hidden":false,"merged":[[8,4,8,11],[4,4,4,11],[5,4,5,11],[1,4,1,11],[2,4,2,11],[3,4,3,11],[6,4,6,11],[7,4,7,11]]}
[]
[null,null,"入力",null,"注意事項"]
[null,"番号",5683,null,"健康保険の番号をを入力してください。"]
[null,"マイナンバー\n基礎年金番号","012345678912",null,"マイナンバー（１２桁）か基礎年金番号（１０桁）を入力してください。"]
[null,"生年月日","1999-11-11",null,"和暦（H11.11.11）で入力してください。"]
[null,"変更後の氏名","健保　健太郎",null,"氏名（漢字）を入力　　※姓と名の間にスペースを入れてください。"]
[null,null,"ケンポ　ケンタロウ",null,"氏名（カナ）を入力　　※姓と名の間にスペースを入れてください。"]
[null,"変更前の氏名","大自整　健太郎",null,"旧氏名(漢字)を入力　　※姓と名の間にスペースを入れてください。"]

{"sheet":"健保正","index":3,"n_rows":68,"n_cols":101,"rows_kept":68,"cut":false,"hidden":false,"merged":[[67,4,70,13],[67,16,70,51],[67,66,68,71],[67,72,73,107],[69,66,73,71],[59,4,62,13],[59,16,62,51],[63,4,66,13],[63,16,66,51],[65,66,66,82],[48,87,49,88],[48,103,49,104],[48,89,49,102],[33,14,38,43],[33,54,45,83],[39,14,40,43],[41,14,45,43],[42,44,45,53],[48,58,50,76],[31,54,32,83],[21,4,30,28],[31,84,35,107],[16,54,20,78],[16,79,20,103],[16,104,30,107],[34,4,37,13],[34,44,37,53],[31,4,33,13],[31,14,32,43],[31,44,33,53],[36,84,45,107],[42,4,45,13],[21,54,30,78],[21,79,30,103],[6,6,9,7],[8,0,9,1],[8,2,9,3],[8,4,9,5],[16,4,20,28],[16,29,20,53],[2,18,7,28],[3,76,9,83],[3,84,9,91],[3,92,9,99],[3,100,9,107],[4,0,5,1],[6,0,7,5],[0,0,1,18],[2,0,3,7],[19,0,59,1],[21,29,30,53],[38,4,41,13],[38,44,41,53],[51,4,52,13],[51,14,52,53],[53,4,58,13],[53,14,54,15],[53,16,54,23],[53,24,54,53],[55,14,70,15],[55,16,58,51],[55,52,70,53],[0,92,2,99],[0,100,2,107],[4,2,5,3],[4,4,5,5],[4,6,5,7],[3,31,6,64],[3,68,9,75],[0,68,2,75],[0,76,2,83],[0,84,2,91]]}
[null,null,null,null,null,null,null,null,null,null,null,null,null,null,null,null,null,null,null,null,null,null,null,null,null,null,null,null,null,null,null,null,null,null,null,null,null,null,null,null,null,null,null,null,null,null,null,null,null,null,null,null,null,null,null,null,null,null,null,null,null,null,null,null,null,null,null,null,"常務理事",null,null,null,null,null,null,null,"事務長",null,null,null,null,null,null,null,"部長",null,null,null,null,null,null,null,"課長",null,null,null,null,null,null,null,"担当"]
[]
[null,null,null,null,null,null,null,null,null,null,null,null,null,null,null,null,null,null,"健康保険"]
[null,null,null,null,null,null,null,null,null,null,null,null,null,null,null,null,null,null,null,null,null,null,null,null,null,null,null,null,null,null,null,"被保険者氏名変更届"]
[]
[]
[]
[]
[]
[]
[]
[]
[]
[]
[]
[]
[null,null,null,null,"①　健保記号",null,null,null,null,null,null,null,null,null,null,null,null,null,null,null,null,null,null,null,null,null,null,null,null,"②　被保険者証番号",null,null,null,null,null,null,null,null,null,null,null,null,null,null,null,null,null,null,null,null,null,null,null,null,"③　個人番号(又は基礎年金番号)",null,null,null,null,null,null,null,null,null,null,null,null,null,null,null,null,null,null,null,null,null,null,null,null,"④　生年月日"]
[]
[]
["◎「※」欄は記入しないでください。"]
[]
[null,null,null,null,{"$f":"IF(ISTEXT(基本情報登録!C6),基本情報登録!C6,\"\")","v":"532"},null,null,null,null,null,null,null,null,null,null,null,null,null,null,null,null,null,null,null,null,null,null,null,null,{"$f":"IF(ISNUMBER(入力!C3),入力!C3,\"\")","v":5683},null,null,null,null,null,null,null,null,null,null,null,null,null,null,null,null,null,null,null,null,null,null,null,null,{"$f":"IF(ISTEXT(入力!C4),入力!C4,\"\")","v":"012345678912"},null,null,null,null,null,null,null,null,null,null,null,null,null,null,null,null,null,null,null,null,null,null,null,null,{"$f":"IF(ISNUMBER(入力!C5),入力!C5,\"\")","v":"1999-11-11"}]
[]
[]
[]
[]
[]
[]
[]
[]
[]
[null,null,null,null,"⑤",null,null,null,null,null,null,null,null,null,"氏名",null,null,null,null,null,null,null,null,null,null,null,null,null,null,null,null,null,null,null,null,null,null,null,null,null,null,null,null,null,"ア",null,null,null,null,null,null,null,null,null,"氏名",null,null,null,null,null,null,null,null,null,null,null,null,null,null,null,null,null,null,null,null,null,null,null,null,null,null,null,null,null,"イ　備考"]
[]
[null,null,null,null,null,null,null,null,null,null,null,null,null,null,{"$f":"IF(ISTEXT(入力!C6),入力!C6,\"\")","v":"健保　健太郎"},null,null,null,null,null,null,null,null,null,null,null,null,null,null,null,null,null,null,null,null,null,null,null,null,null,null,null,null,null,null,null,null,null,null,null,null,null,null,null,{"$f":"IF(ISTEXT(入力!C8),入力!C8,\"\")","v":"大自整　健太郎"}]
[null,null,null,null,"被保険者",null,null,null,null,null,null,null,null,null,null,null,null,null,null,null,null,null,null,null,null,null,null,null,null,null,null,null,null,null,null,null,null,null,null,null,null,null,null,null,"変更前の"]
[]
[]
[]
[null,null,null,null,"の氏名",null,null,null,null,null,null,null,null,null,null,null,null,null,null,null,null,null,null,null,null,null,null,null,null,null,null,null,null,null,null,null,null,null,null,null,null,null,null,null,"氏名"]
[null,null,null,null,null,null,null,null,null,null,null,null,null,null,"フリガナ"]
[]
[null,null,null,null,null,null,null,null,null,null,null,null,null,null,{"$f":"IF(ISTEXT(入力!C7),入力!C7,\"\")","v":"ケンポ　ケンタロウ"}]
[null,null,null,null,"(変更後)"]
[]
[]
[]
[]
[]
[null,null,null,null,null,null,null,null,null,null,null,null,null,null,null,null,null,null,null,null,null,null,null,null,null,null,null,null,null,null,null,null,null,null,null,null,null,null,null,null,null,null,null,null,null,null,null,null,null,null,null,null,null,null,null,null,null,null,{"$f":"基本情報登録!C2","v":"2022-08-23"},null,null,null,null,null,null,null,null,null,null,null,null,null,null,null,null,null,null,null,null,null,null,null,null,null,null,null,null,null,null,"受付日付印"]
[]
[]
[null,null,null,null,null,null,null,null,null,null,null,null,null,null,"届書記入の個人番号に誤りがないことを確認しました。"]
[]
[null,null,null,null,"事業所所在地",null,null,null,null,null,null,null,null,null,"〒",null,{"$f":"基本情報登録!C7","v":"542-0066"}]
[]
[null,null,null,null,null,null,null,null,null,null,null,null,null,null,null,null,{"$f":"基本情報登録!C8","v":"大阪府大阪市中央区瓦屋町2-3-1"}]
[]
[]
[]
[null,null,null,null,"事業所名称",null,null,null,null,null,null,null,null,null,null,null,{"$f":"基本情報登録!C9","v":"大阪自動車整備健康保険組合"}]
[]
[]
[]
[null,null,null,null,"事業主氏名",null,null,null,null,null,null,null,null,null,null,null,{"$f":"基本情報登録!C10","v":"理事長　健保　太郎"}]
[]
[null,null,null,null,null,null,null,null,null,null,null,null,null,null,null,null,null,null,null,null,null,null,null,null,null,null,null,null,null,null,null,null,null,null,null,null,null,null,null,null,null,null,null,null,null,null,null,null,null,null,null,null,null,null,null,null,null,null,null,null,null,null,null,null,null,null,"社会保険労務士記載欄"]
[]
[null,null,null,null,"電　話",null,null,null,null,null,null,null,null,null,null,null,{"$f":"基本情報登録!C11","v":"06-6762-6371"},null,null,null,null,null,null,null,null,null,null,null,null,null,null,null,null,null,null,null,null,null,null,null,null,null,null,null,null,null,null,null,null,null,null,null,null,null,null,null,null,null,null,null,null,null,null,null,null,null,"氏名等"]

{"sheet":"健保副","index":4,"n_rows":68,"n_cols":85,"rows_kept":68,"cut":false,"hidden":false,"merged":[[63,49,66,51],[63,16,66,48],[53,58,55,91],[58,64,60,83],[66,68,68,101],[48,58,50,76],[31,54,32,83],[51,4,52,13],[51,14,52,53],[53,4,58,13],[53,14,54,15],[53,16,54,23],[53,24,54,53],[55,14,70,15],[55,16,58,51],[55,52,70,53],[59,4,62,13],[59,16,62,51],[63,4,66,13],[67,4,70,13],[67,16,70,51],[34,4,37,13],[34,44,37,53],[36,84,45,107],[38,4,41,13],[38,44,41,53],[39,14,40,43],[41,14,45,43],[42,4,45,13],[42,44,45,53],[16,4,20,28],[16,29,20,53],[16,79,20,103],[16,104,30,107],[19,0,59,1],[21,4,30,28],[21,29,30,53],[21,54,30,78],[21,79,30,103],[31,4,33,13],[31,14,32,43],[31,44,33,53],[16,54,20,78],[31,84,35,107],[33,14,38,43],[33,54,45,83],[4,4,5,5],[4,6,5,7],[6,0,7,5],[6,6,9,7],[8,0,9,1],[8,2,9,3],[8,4,9,5],[0,100,2,107],[2,0,3,7],[2,18,7,28],[3,31,6,64],[3,68,9,75],[0,0,1,18],[0,68,2,75],[0,76,2,83],[0,84,2,91],[0,92,2,99],[3,76,9,83],[3,84,9,91],[3,92,9,99],[3,100,9,107],[4,0,5,1],[4,2,5,3]]}
[]
[]
[null,null,null,null,null,null,null,null,null,null,null,null,null,null,null,null,null,null,"健康保険"]
[null,null,null,null,null,null,null,null,null,null,null,null,null,null,null,null,null,null,null,null,null,null,null,null,null,null,null,null,null,null,null,"被保険者氏名変更届"]
[]
[]
[]
[]
[]
[]
[]
[]
[]
[]
[]
[]
[null,null,null,null,"①　健保記号",null,null,null,null,null,null,null,null,null,null,null,null,null,null,null,null,null,null,null,null,null,null,null,null,"②　被保険者証番号",null,null,null,null,null,null,null,null,null,null,null,null,null,null,null,null,null,null,null,null,null,null,null,null,"③　個人番号(又は基礎年金番号)",null,null,null,null,null,null,null,null,null,null,null,null,null,null,null,null,null,null,null,null,null,null,null,null,"④　生年月日"]
[]
[]
["◎「※」欄は記入しないでください。"]
[]
[null,null,null,null,{"$f":"IF(ISTEXT(基本情報登録!C6),基本情報登録!C6,\"\")","v":"532"},null,null,null,null,null,null,null,null,null,null,null,null,null,null,null,null,null,null,null,null,null,null,null,null,{"$f":"IF(ISNUMBER(入力!C3),入力!C3,\"\")","v":5683},null,null,null,null,null,null,null,null,null,null,null,null,null,null,null,null,null,null,null,null,null,null,null,null,null,null,null,null,null,null,null,null,null,null,null,null,null,null,null,null,null,null,null,null,null,null,null,null,null,{"$f":"IF(ISNUMBER(入力!C5),入力!C5,\"\")","v":"1999-11-11"}]
[]
[]
[]
[]
[]
[]
[]
[]
[]
[null,null,null,null,"⑤",null,null,null,null,null,null,null,null,null,"氏名",null,null,null,null,null,null,null,null,null,null,null,null,null,null,null,null,null,null,null,null,null,null,null,null,null,null,null,null,null,"ア",null,null,null,null,null,null,null,null,null,"氏名",null,null,null,null,null,null,null,null,null,null,null,null,null,null,null,null,null,null,null,null,null,null,null,null,null,null,null,null,null,"イ　備考"]
[]
[null,null,null,null,null,null,null,null,null,null,null,null,null,null,{"$f":"IF(ISTEXT(入力!C6),入力!C6,\"\")","v":"健保　健太郎"},null,null,null,null,null,null,null,null,null,null,null,null,null,null,null,null,null,null,null,null,null,null,null,null,null,null,null,null,null,null,null,null,null,null,null,null,null,null,null,{"$f":"IF(ISTEXT(入力!C8),入力!C8,\"\")","v":"大自整　健太郎"}]
[null,null,null,null,"被保険者",null,null,null,null,null,null,null,null,null,null,null,null,null,null,null,null,null,null,null,null,null,null,null,null,null,null,null,null,null,null,null,null,null,null,null,null,null,null,null,"変更前の"]
[]
[]
[]
[null,null,null,null,"の氏名",null,null,null,null,null,null,null,null,null,null,null,null,null,null,null,null,null,null,null,null,null,null,null,null,null,null,null,null,null,null,null,null,null,null,null,null,null,null,null,"氏名"]
[null,null,null,null,null,null,null,null,null,null,null,null,null,null,"フリガナ"]
[]
[null,null,null,null,null,null,null,null,null,null,null,null,null,null,{"$f":"IF(ISTEXT(入力!C7),入力!C7,\"\")","v":"ケンポ　ケンタロウ"}]
[null,null,null,null,"(変更後)"]
[]
[]
[]
[]
[]
[]
[]
[]
[null,null,null,null,null,null,null,null,null,null,null,null,null,null,"届書記入の個人番号に誤りがないことを確認しました。"]
[]
[null,null,null,null,"事業所所在地",null,null,null,null,null,null,null,null,null,"〒",null,{"$f":"基本情報登録!C7","v":"542-0066"},null,null,null,null,null,null,null,null,null,null,null,null,null,null,null,null,null,null,null,null,null,null,null,null,null,null,null,null,null,null,null,null,null,null,null,null,null,null,null,null,null,"上記の通り受理しましたので報告します。"]
[]
[null,null,null,null,null,null,null,null,null,null,null,null,null,null,null,null,{"$f":"基本情報登録!C8","v":"大阪府大阪市中央区瓦屋町2-3-1"}]
[]
[]
[null,null,null,null,null,null,null,null,null,null,null,null,null,null,null,null,null,null,null,null,null,null,null,null,null,null,null,null,null,null,null,null,null,null,null,null,null,null,null,null,null,null,null,null,null,null,null,null,null,null,null,null,null,null,null,null,null,null,null,null,null,null,null,null,"令和　　年　　月　　日"]
[null,null,null,null,"事業所名称",null,null,null,null,null,null,null,null,null,null,null,{"$f":"基本情報登録!C9","v":"大阪自動車整備健康保険組合"}]
[]
[]
[]
[null,null,null,null,"事業主氏名",null,null,null,null,null,null,null,null,null,null,null,{"$f":"基本情報登録!C10","v":"理事長　健保　太郎"},null,null,null,null,null,null,null,null,null,null,null,null,null,null,null,null,null,null,null,null,null,null,null,null,null,null,null,null,null,null,null,null,"様"]
[]
[]
[null,null,null,null,null,null,null,null,null,null,null,null,null,null,null,null,null,null,null,null,null,null,null,null,null,null,null,null,null,null,null,null,null,null,null,null,null,null,null,null,null,null,null,null,null,null,null,null,null,null,null,null,null,null,null,null,null,null,null,null,null,null,null,null,null,null,null,null,"大阪自動車整備健康保険組合"]
[null,null,null,null,"電　話",null,null,null,null,null,null,null,null,null,null,null,{"$f":"基本情報登録!C11","v":"06-6762-6371"}]

{"sheet":"年金","index":5,"n_rows":68,"n_cols":105,"rows_kept":68,"cut":false,"hidden":false,"merged":[[55,14,70,15],[48,58,50,76],[65,66,66,82],[67,66,68,71],[67,72,73,107],[69,66,73,71],[51,14,52,53],[53,14,54,15],[53,16,54,23],[55,16,58,51],[59,16,62,51],[63,16,66,51],[67,16,70,51],[53,24,54,53],[55,52,70,53],[6,0,7,5],[6,6,9,7],[3,31,6,64],[0,92,2,99],[3,68,9,75],[3,76,9,83],[3,84,9,91],[3,92,9,99],[0,100,2,107],[3,100,9,107],[0,68,2,75],[0,76,2,83],[0,84,2,91],[19,0,59,1],[0,0,1,18],[4,0,5,1],[4,2,5,3],[4,4,5,5],[4,6,5,7],[2,0,3,7],[8,0,9,1],[31,4,33,13],[34,4,37,13],[38,4,41,13],[42,4,45,13],[5,18,7,28],[2,18,4,28],[8,2,9,3],[8,4,9,5],[16,104,30,107],[16,79,20,103],[16,4,20,28],[16,29,20,53],[16,54,20,78],[21,4,25,13],[26,4,30,8],[26,9,30,13],[21,14,30,28],[21,29,30,53],[21,54,30,78],[21,79,30,103],[31,98,35,107],[36,98,45,107],[31,84,35,93],[36,84,37,93],[38,84,45,93],[41,14,45,43],[33,14,38,43],[39,14,40,43],[31,14,32,43],[31,94,45,97],[31,44,33,53],[31,54,32,83],[34,44,37,53],[38,44,41,53],[42,44,45,53],[33,54,45,83],[53,4,58,13],[59,4,62,13],[63,4,66,13],[67,4,70,13],[51,4,52,13]]}
["様式第七号（第二十八条関係）"]
[]
["様式コード",null,null,null,null,null,null,null,null,null,null,null,null,null,null,null,null,null,"健康保険"]
[null,null,null,null,null,null,null,null,null,null,null,null,null,null,null,null,null,null,null,null,null,null,null,null,null,null,null,null,null,null,null,"被保険者氏名変更届"]
[2,null,2,null,0,null,7]
[null,null,null,null,null,null,null,null,null,null,null,null,null,null,null,null,null,null,"厚生年金保険"]
["届書コード",null,null,null,null,null,"届書"]
[]
[2,null,0,null,7]
[]
[]
[]
[]
[]
[]
[]
[null,null,null,null,"①　事業所整理記号",null,null,null,null,null,null,null,null,null,null,null,null,null,null,null,null,null,null,null,null,null,null,null,null,"②　被保険者整理番号",null,null,null,null,null,null,null,null,null,null,null,null,null,null,null,null,null,null,null,null,null,null,null,null,"③　個人番号(又は基礎年金番号)",null,null,null,null,null,null,null,null,null,null,null,null,null,null,null,null,null,null,null,null,null,null,null,null,"④　生年月日",null,null,null,null,null,null,null,null,null,null,null,null,null,null,null,null,null,null,null,null,null,null,null,null,"送　信"]
[]
[]
["◎「※」欄は記入しないでください。"]
[]
[null,null,null,null,{"$f":"基本情報登録!C3","v":"南"},null,null,null,null,null,null,null,null,null,{"$f":"基本情報登録!C4","v":"ＷＥＤ"},null,null,null,null,null,null,null,null,null,null,null,null,null,null,{"$f":"IF(ISNUMBER(入力!C3),入力!C3,\"\")","v":5683},null,null,null,null,null,null,null,null,null,null,null,null,null,null,null,null,null,null,null,null,null,null,null,null,{"$f":"IF(ISTEXT(入力!C4),入力!C4,\"\")","v":"012345678912"},null,null,null,null,null,null,null,null,null,null,null,null,null,null,null,null,null,null,null,null,null,null,null,null,{"$f":"IF(ISNUMBER(入力!C5),入力!C5,\"\")","v":"1999-11-11"}]
[]
[]
[]
[]
[null,null,null,null,"※"]
[]
[]
[]
[]
[null,null,null,null,"⑤",null,null,null,null,null,null,null,null,null,"氏名",null,null,null,null,null,null,null,null,null,null,null,null,null,null,null,null,null,null,null,null,null,null,null,null,null,null,null,null,null,"ア",null,null,null,null,null,null,null,null,null,"氏名",null,null,null,null,null,null,null,null,null,null,null,null,null,null,null,null,null,null,null,null,null,null,null,null,null,null,null,null,null,"⑥健康保険被\n保険者証不要",null,null,null,null,null,null,null,null,null,"送　信",null,null,null,"イ　備考"]
[]
[null,null,null,null,null,null,null,null,null,null,null,null,null,null,{"$f":"IF(ISTEXT(入力!C6),入力!C6,\"\")","v":"健保　健太郎"},null,null,null,null,null,null,null,null,null,null,null,null,null,null,null,null,null,null,null,null,null,null,null,null,null,null,null,null,null,null,null,null,null,null,null,null,null,null,null,{"$f":"IF(ISTEXT(入力!C8),入力!C8,\"\")","v":"大自整　健太郎"}]
[null,null,null,null,"被保険者",null,null,null,null,null,null,null,null,null,null,null,null,null,null,null,null,null,null,null,null,null,null,null,null,null,null,null,null,null,null,null,null,null,null,null,null,null,null,null,"変更前の"]
[]
[null,null,null,null,null,null,null,null,null,null,null,null,null,null,null,null,null,null,null,null,null,null,null,null,null,null,null,null,null,null,null,null,null,null,null,null,null,null,null,null,null,null,null,null,null,null,null,null,null,null,null,null,null,null,null,null,null,null,null,null,null,null,null,null,null,null,null,null,null,null,null,null,null,null,null,null,null,null,null,null,null,null,null,null,"※"]
[]
[null,null,null,null,"の氏名",null,null,null,null,null,null,null,null,null,null,null,null,null,null,null,null,null,null,null,null,null,null,null,null,null,null,null,null,null,null,null,null,null,null,null,null,null,null,null,"氏名",null,null,null,null,null,null,null,null,null,null,null,null,null,null,null,null,null,null,null,null,null,null,null,null,null,null,null,null,null,null,null,null,null,null,null,null,null,null,null,"要　　０\n\n不要　１"]
[null,null,null,null,null,null,null,null,null,null,null,null,null,null,"フリガナ"]
[]
[null,null,null,null,null,null,null,null,null,null,null,null,null,null,{"$f":"IF(ISTEXT(入力!C7),入力!C7,\"\")","v":"ケンポ　ケンタロウ"}]
[null,null,null,null,"(変更後)"]
[]
[]
[]
[]
[]
[null,null,null,null,null,null,null,null,null,null,null,null,null,null,null,null,null,null,null,null,null,null,null,null,null,null,null,null,null,null,null,null,null,null,null,null,null,null,null,null,null,null,null,null,null,null,null,null,null,null,null,null,null,null,null,null,null,null,{"$f":"基本情報登録!C2","v":"2022-08-23"}]
[]
[]
[null,null,null,null,null,null,null,null,null,null,null,null,null,null,"届書記入の個人番号に誤りがないことを確認しました。"]
[]
[null,null,null,null,"事業所所在地",null,null,null,null,null,null,null,null,null,"〒",null,{"$f":"基本情報登録!C7","v":"542-0066"}]
[]
[null,null,null,null,null,null,null,null,null,null,null,null,null,null,null,null,{"$f":"基本情報登録!C8","v":"大阪府大阪市中央区瓦屋町2-3-1"}]
[]
[]
[]
[null,null,null,null,"事業所名称",null,null,null,null,null,null,null,null,null,null,null,{"$f":"基本情報登録!C9","v":"大阪自動車整備健康保険組合"}]
[]
[]
[]
[null,null,null,null,"事業主氏名",null,null,null,null,null,null,null,null,null,null,null,{"$f":"基本情報登録!C10","v":"理事長　健保　太郎"}]
[]
[null,null,null,null,null,null,null,null,null,null,null,null,null,null,null,null,null,null,null,null,null,null,null,null,null,null,null,null,null,null,null,null,null,null,null,null,null,null,null,null,null,null,null,null,null,null,null,null,null,null,null,null,null,null,null,null,null,null,null,null,null,null,null,null,null,null,"社会保険労務士記載欄"]
[]
[null,null,null,null,"電　話",null,null,null,null,null,null,null,null,null,null,null,{"$f":"基本情報登録!C11","v":"06-6762-6371"},null,null,null,null,null,null,null,null,null,null,null,null,null,null,null,null,null,null,null,null,null,null,null,null,null,null,null,null,null,null,null,null,null,null,null,null,null,null,null,null,null,null,null,null,null,null,null,null,null,"氏名等"]